fUSD/lending_fUSD_20241104
["ID","MTS","AMOUNT","RATE_DAILY","PERIOD"]
[341265997,1730735481036,-500.0,0.00036986,2]
[341265998,1730735481046,-2018.13,0.00036986,2]
[341265999,1730735481056,-1093.28,0.00036986,2]
[341266000,1730735481066,-500.0,0.00036986,2]
[341266001,1730735481075,-500.0,0.00036986,2]
[341266002,1730735481084,-500.0,0.00036986,2]
[341266003,1730735481094,-1104.45,0.00036986,2]
[341266004,1730735481103,-1687.58,0.00036986,2]
[341266005,1730735481113,-500.0,0.00036986,2]
[341266006,1730735481123,-500.0,0.00036986,2]
[341266007,1730735481132,-911.86,0.00036986,2]
[341266008,1730735481141,-500.0,0.00036986,2]
[341266009,1730735481151,-835.19,0.00036986,2]
[341266010,1730735481160,-500.0,0.00036986,2]
[341266011,1730735481170,-878.68,0.00036986,2]
[341266012,1730735481179,-1098.84,0.00036986,2]
[341266013,1730735481189,-500.0,0.00036986,2]
[341266014,1730735481199,-1310.74,0.00036986,2]
[341266015,1730735481208,-500.0,0.00036986,2]
[341266016,1730735481220,-2183.79,0.00036986,2]
[341266017,1730735481230,-500.0,0.00036986,2]
[341266018,1730735481240,-820.36,0.00036986,2]
[341266019,1730735481250,-515.02,0.00036986,2]
[341266020,1730735481260,-500.0,0.00036986,2]
[341266021,1730735481269,-500.0,0.00036986,2]
[341266022,1730735481279,-500.0,0.00036986,2]
[341266023,1730735481288,-500.0,0.00036986,2]
[341266024,1730735481298,-500.0,0.00036986,2]
[341266025,1730735481308,-500.0,0.00036986,2]
[341266026,1730735481317,-500.0,0.00036986,2]
[341266027,1730735481327,-500.0,0.00036986,2]
[341266028,1730735481336,-500.0,0.00036986,2]
[341266029,1730735481346,-500.0,0.00036986,2]
[341266030,1730735481356,-596.64134426,0.00036986,2]
[341266031,1730735481366,-1708.91,0.00036986,2]
[341266032,1730735481375,-544.98,0.00036986,2]
[341266033,1730735481385,-500.0,0.00036986,2]
[341266034,1730735481399,-264.43723326,0.00036986,2]
[341266035,1730735481408,-660.53,0.00036986,2]
[341266036,1730735481418,-500.0,0.00036986,2]
[341266037,1730735481428,-850.52,0.00036986,2]
[341266038,1730735481439,-564.44,0.00036986,2]
[341266039,1730735481448,-752.59,0.00036986,2]
[341266040,1730735481574,-500.0,0.00036986,2]
[341266041,1730735481584,-500.0,0.00036986,2]
[341266042,1730735481594,-500.0,0.00036986,2]
[341266043,1730735481604,-500.0,0.00036986,2]
[341266044,1730735481613,-500.0,0.00036986,2]
[341266045,1730735481623,-1296.67,0.00036986,2]
[341266046,1730735481632,-1584.46,0.00036986,2]
[341266047,1730735481641,-500.0,0.00036986,2]
[341266048,1730735481650,-1066.3,0.00036986,2]
[341266049,1730735481659,-500.0,0.00036986,2]
[341266050,1730735481668,-1582.17,0.00036986,2]
[341266051,1730735481677,-500.0,0.00036986,2]
[341266052,1730735481687,-500.0,0.00036986,2]
[341266053,1730735481696,-500.0,0.00036986,2]
[341266054,1730735481706,-500.0,0.00036986,2]
[341266055,1730735481716,-500.0,0.00036986,2]
[341266056,1730735481726,-205.55544695,0.00036986,2]
[341266057,1730735481735,-500.0,0.00036986,2]
[341266058,1730735481745,-500.0,0.00036986,2]
[341266059,1730735481754,-500.0,0.00036986,2]
[341266060,1730735481766,-1042.76,0.00036986,2]
[341266061,1730735481775,-151.0,0.00036986,7]
[341266062,1730735481786,-500.0,0.00036986,2]
[341266063,1730735481796,-151.0,0.00036986,7]
[341266064,1730735481807,-1058.38,0.00036986,2]
[341266065,1730735481817,-500.0,0.00036986,2]
[341266066,1730735481826,-505.09,0.00036986,2]
[341266067,1730735481836,-200.0,0.00036986,2]
[341266068,1730735481846,-913.46,0.00036986,2]
[341266069,1730735481855,-2146.82,0.00036986,2]
[341266070,1730735481865,-766.26,0.00036986,2]
[341266071,1730735481874,-500.0,0.00036986,2]
[341266072,1730735481884,-1191.45,0.00036986,2]
[341266073,1730735481894,-500.0,0.00036986,2]
[341266074,1730735481903,-500.0,0.00036986,2]
[341266075,1730735481912,-500.0,0.00036986,2]
[341266076,1730735481923,-609.71,0.00036986,2]
[341266077,1730735481934,-938.94,0.00036986,2]
[341266078,1730735481944,-1030.14707402,0.00036986,89]
[341266079,1730735481955,-734.64,0.00036986,2]
[341266080,1730735481964,-500.0,0.00036986,2]
[341266081,1730735481975,-300.0,0.00036986,2]
[341266082,1730735481986,-155.43670279,0.00036986,2]
[341266083,1730735481996,-530.41,0.00036986,2]
[341266084,1730735482006,-500.0,0.00036986,2]
[341266085,1730735482016,-1127.04,0.00036986,2]
[341266086,1730735482027,-654.01,0.00036986,2]
[341266087,1730735482036,-3340.62,0.00036986,2]
[341266088,1730735482047,-500.0,0.00036986,2]
[341266089,1730735482057,-500.0,0.00036986,2]
[341266090,1730735482066,-10593.24,0.00036986,2]
[341266091,1730735482076,-500.0,0.00036986,2]
[341266092,1730735482086,-500.0,0.00036986,2]
[341266093,1730735482097,-735.14,0.00036986,2]
[341266094,1730735482106,-528.03,0.00036986,2]
[341266095,1730735482115,-1246.62,0.00036986,2]
[341266096,1730735482124,-3005.2,0.00036986,2]
[341266097,1730735482133,-500.0,0.00036986,2]
[341266098,1730735482143,-396.36009437,0.00036986,2]
[341266099,1730735482154,-558.26,0.00036986,2]
[341266100,1730735482164,-500.0,0.00036986,2]
[341266101,1730735482174,-656.86,0.00036986,2]
[341266102,1730735482184,-625.73,0.00036986,2]
[341266103,1730735482194,-500.0,0.00036986,2]
[341266104,1730735482204,-1000.0,0.00036986,2]
[341266105,1730735482215,-2616.04,0.00036986,2]
[341266106,1730735482228,-500.0,0.00036986,2]
[341266107,1730735482237,-3461.86,0.00036986,2]
[341266108,1730735482247,-500.0,0.00036986,2]
[341266109,1730735482256,-500.0,0.00036986,2]
[341266110,1730735482267,-500.0,0.00036986,2]
[341266111,1730735482277,-1222.7,0.00036986,2]
[341266112,1730735482287,-514.78,0.00036986,2]
[341266113,1730735482297,-500.0,0.00036986,2]
[341266114,1730735482307,-500.0,0.00036986,2]
[341266115,1730735482317,-500.0,0.00036986,2]
[341266116,1730735482327,-500.0,0.00036986,2]
[341266117,1730735482335,-954.74,0.00036986,2]
[341266118,1730735482345,-692.32,0.00036986,2]
[341266119,1730735482354,-596.33,0.00036986,2]
[341266120,1730735482363,-500.0,0.00036986,2]
[341266121,1730735482372,-255.746573,0.00036986,7]
[341266122,1730735482382,-1916.99,0.00036986,2]
[341266123,1730735482394,-1500.0,0.00037,2]
[341266124,1730735482403,-1500.0,0.00037,2]
[341266125,1730735482412,-1500.0,0.00037,2]
[341266126,1730735482421,-1500.0,0.00037,2]
[341266127,1730735482432,-1533.85,0.00037,2]
[341266128,1730735482442,-1500.0,0.00037,2]
[341266129,1730735482451,-1500.0,0.00037,2]
[341266130,1730735482462,-650.0,0.00037,2]
[341266131,1730735482471,-167.0,0.00037058,2]
[341266132,1730735482481,-2289.85375,0.00037239,2]
[341266133,1730735482490,-177.834,0.00037239,2]
[341266134,1730735482499,-500.0,0.00037259,2]
[341266135,1730735482508,-519.87,0.00037259,2]
[341266136,1730735482518,-500.0,0.00037259,2]
[341266137,1730735482527,-500.0,0.00037259,2]
[341266138,1730735482535,-404.78142703,0.00037259,2]
[341266139,1730735482545,-500.0,0.00037259,2]
[341266140,1730735482553,-500.0,0.00037259,2]
[341266141,1730735482562,-500.0,0.00037259,2]
[341266142,1730735482571,-500.0,0.00037259,2]
[341266143,1730735482580,-500.0,0.00037259,2]
[341266144,1730735482589,-500.0,0.00037259,2]
[341266145,1730735482599,-500.0,0.00037259,2]
[341266146,1730735482608,-604.01828209,0.00037259,2]
[341266147,1730735482617,-500.0,0.00037259,2]
[341266148,1730735482627,-500.0,0.00037259,2]
[341266149,1730735482635,-531.94404031,0.00037259,2]
[341266150,1730735482645,-500.0,0.00037259,2]
[341266151,1730735482654,-500.0,0.00037259,2]
[341266152,1730735482663,-500.0,0.00037259,2]
[341266153,1730735482672,-500.0,0.00037259,2]
[341266154,1730735482681,-520.94,0.00037259,2]
[341266155,1730735482691,-500.0,0.00037259,2]
[341266156,1730735482700,-500.0,0.00037259,2]
[341266157,1730735482709,-575.99,0.00037259,2]
[341266158,1730735482718,-500.0,0.00037259,2]
[341266159,1730735482729,-500.0,0.00037259,2]
[341266160,1730735482738,-500.0,0.00037259,2]
[341266161,1730735482747,-500.0,0.00037259,2]
[341266162,1730735482757,-500.0,0.00037259,2]
[341266163,1730735482766,-549.42,0.00037259,2]
[341266164,1730735482775,-500.0,0.0003726,2]
[341266165,1730735482786,-592.29867852,0.0003726,2]
[341266166,1730735482795,-500.0,0.0003726,2]
[341266167,1730735482804,-517.84063448,0.0003726,2]
[341266168,1730735482814,-500.0,0.0003726,2]
[341266169,1730735482823,-500.0,0.0003726,2]
[341266170,1730735482833,-678.77,0.0003726,2]
[341266171,1730735482842,-500.0,0.0003726,2]
[341266172,1730735482852,-500.0,0.0003726,2]
[341266173,1730735482861,-500.0,0.0003726,2]
[341266174,1730735482870,-500.0,0.0003726,2]
[341266175,1730735482879,-500.0,0.0003726,2]
[341266176,1730735482889,-564.87355586,0.0003726,2]
[341266177,1730735482898,-500.0,0.0003726,2]
[341266178,1730735482908,-595.97,0.0003726,2]
[341266179,1730735482917,-500.0,0.0003726,2]
[341266180,1730735482926,-500.0,0.0003726,2]
[341266181,1730735482935,-562.46,0.0003726,2]
[341266182,1730735482946,-500.0,0.0003726,2]
[341266183,1730735482957,-629.5530416,0.0003726,2]
[341266184,1730735482966,-529.75521085,0.0003726,2]
[341266185,1730735482975,-845.59,0.0003726,2]
[341266186,1730735482986,-500.0,0.0003726,2]
[341266187,1730735482995,-500.0,0.0003726,2]
[341266188,1730735483004,-495.95138198,0.0003726,2]
[341266189,1730735483014,-500.0,0.0003726,2]
[341266190,1730735483023,-500.0,0.0003726,2]
[341266191,1730735483032,-750.1,0.0003726,2]
[341266192,1730735483041,-555.32592838,0.0003726,2]
[341266193,1730735483050,-500.0,0.0003726,2]
[341266194,1730735483059,-500.0,0.0003726,2]
[341266195,1730735483070,-500.0,0.0003726,2]
[341266196,1730735483080,-500.0,0.0003726,2]
[341266197,1730735483089,-500.0,0.0003726,2]
[341266198,1730735483099,-567.62,0.0003726,2]
[341266199,1730735483108,-480.56677238,0.0003726,2]
[341266200,1730735483117,-500.0,0.0003726,2]
[341266201,1730735483127,-1971.19,0.0003726,2]
[341266202,1730735483136,-1610.78,0.0003726,2]
[341266203,1730735483145,-500.0,0.0003726,2]
[341266204,1730735483155,-1096.83,0.0003726,2]
[341266205,1730735483164,-500.0,0.0003726,2]
[341266206,1730735483173,-500.0,0.0003726,2]
[341266207,1730735483182,-500.0,0.0003726,2]
[341266208,1730735483191,-516.0,0.0003726,2]
[341266209,1730735483200,-408.4744422,0.0003726,2]
[341266210,1730735483210,-527.03,0.0003726,2]
[341266211,1730735483219,-500.0,0.0003726,2]
[341266212,1730735483228,-500.0,0.0003726,2]
[341266213,1730735483237,-680.27,0.0003726,2]
[341266214,1730735483247,-511.55,0.0003726,2]
[341266215,1730735483256,-500.0,0.0003726,2]
[341266216,1730735483265,-568.1,0.0003726,2]
[341266217,1730735483274,-630.31,0.0003726,2]
[341266218,1730735483283,-879.99,0.0003726,2]
[341266219,1730735483293,-500.0,0.0003726,2]
[341266220,1730735483303,-1000.0,0.0003726,30]
[341266221,1730735483314,-860.12,0.0003726,2]
[341266222,1730735483324,-500.0,0.0003726,2]
[341266223,1730735483334,-500.0,0.0003726,2]
[341266224,1730735483344,-678.21,0.0003726,2]
[341266225,1730735483354,-777.65,0.0003726,2]
[341266226,1730735483365,-500.0,0.0003726,2]
[341266227,1730735483374,-500.0,0.0003726,2]
[341266228,1730735483383,-512.81,0.0003726,2]
[341266229,1730735483395,-1976.03,0.0003726,2]
[341266230,1730735483407,-977.14,0.0003726,2]
[341266231,1730735483418,-500.0,0.0003726,2]
[341266232,1730735483430,-500.0,0.0003726,2]
[341266233,1730735483442,-500.0,0.0003726,2]
[341266234,1730735483451,-622.99,0.0003726,2]
[341266235,1730735483463,-500.0,0.0003726,2]
[341266236,1730735483474,-712.32,0.0003726,2]
[341266237,1730735483486,-1115.68,0.0003726,2]
[341266238,1730735483496,-500.0,0.0003726,2]
[341266239,1730735483508,-573.59816414,0.0003726,2]
[341266240,1730735483518,-500.0,0.0003726,2]
[341266241,1730735483529,-500.0,0.0003726,2]
[341266242,1730735483539,-500.0,0.0003726,2]
[341266243,1730735483550,-500.0,0.0003726,2]
[341266244,1730735483561,-808.98,0.0003726,2]
[341266245,1730735483570,-500.0,0.0003726,2]
[341266246,1730735483580,-1323.81,0.0003726,2]
[341266247,1730735483589,-1426.9,0.0003726,2]
[341266248,1730735483599,-500.0,0.0003726,2]
[341266249,1730735483609,-294.60393507,0.0003726,2]
[341266250,1730735483731,-500.0,0.0003726,2]
[341266251,1730735483742,-666.03,0.0003726,2]
[341266252,1730735483752,-839.44,0.0003726,2]
[341266253,1730735483762,-500.0,0.0003726,2]
[341266254,1730735483771,-500.0,0.0003726,2]
[341266255,1730735483782,-500.0,0.0003726,2]
[341266256,1730735483791,-500.0,0.0003726,2]
[341266257,1730735483801,-500.0,0.0003726,2]
[341266258,1730735483812,-737.61,0.0003726,2]
[341266259,1730735483821,-500.0,0.0003726,2]
[341266260,1730735483830,-500.0,0.0003726,2]
[341266261,1730735483839,-557.05290745,0.0003726,2]
[341266262,1730735483849,-500.0,0.0003726,2]
[341266263,1730735483859,-628.78,0.0003726,2]
[341266264,1730735483868,-753.23,0.0003726,2]
[341266265,1730735483878,-500.0,0.0003726,2]
[341266266,1730735483887,-500.0,0.0003726,2]
[341266267,1730735483896,-512.34,0.0003726,2]
[341266268,1730735483906,-690.94,0.0003726,2]
[341266269,1730735483916,-1122.64,0.0003726,2]
[341266270,1730735483927,-956.46,0.0003726,2]
[341266271,1730735483937,-500.0,0.0003726,2]
[341266272,1730735483947,-500.0,0.0003726,2]
[341266273,1730735483956,-500.0,0.0003726,2]
[341266274,1730735483966,-500.0,0.0003726,2]
[341266275,1730735483977,-500.0,0.0003726,2]
[341266276,1730735483987,-1420.89,0.0003726,2]
[341266277,1730735483997,-705.19,0.0003726,2]
[341266278,1730735484007,-500.0,0.0003726,2]
[341266279,1730735484017,-767.22,0.0003726,2]
[341266280,1730735484026,-500.0,0.0003726,2]
[341266281,1730735484036,-500.0,0.0003726,2]
[341266282,1730735484046,-869.5,0.0003726,2]
[341266283,1730735484056,-712.63,0.0003726,2]
[341266284,1730735484065,-610.42535307,0.0003726,2]
[341266285,1730735484075,-937.08,0.0003726,2]
[341266286,1730735484084,-764.15,0.0003726,2]
[341266287,1730735484093,-500.0,0.0003726,2]
[341266288,1730735484103,-1294.05,0.0003726,2]
[341266289,1730735484113,-500.0,0.0003726,2]
[341266290,1730735484122,-510.62,0.0003726,2]
[341266291,1730735484131,-524.31,0.0003726,2]
[341266292,1730735484140,-500.0,0.0003726,2]
[341266293,1730735484150,-1118.2,0.0003726,2]
[341266294,1730735484159,-203.60349005,0.0003726,2]
[341266295,1730735484169,-528.36903164,0.0003726,2]
[341266296,1730735484179,-500.0,0.0003726,2]
[341266297,1730735484189,-711.3,0.0003726,2]
[341266298,1730735484199,-500.0,0.0003726,2]
[341266299,1730735484208,-500.0,0.0003726,2]
[341266300,1730735484217,-1519.0,0.0003726,2]
[341266301,1730735484227,-500.0,0.0003726,2]
[341266302,1730735484238,-500.0,0.0003726,2]
[341266303,1730735484247,-500.0,0.0003726,2]
[341266304,1730735484256,-1126.44,0.0003726,2]
[341266305,1730735484266,-544.05,0.0003726,2]
[341266306,1730735484275,-500.0,0.0003726,2]
[341266307,1730735484285,-500.0,0.0003726,2]
[341266308,1730735484295,-500.0,0.0003726,2]
[341266309,1730735484305,-500.0,0.0003726,2]
[341266310,1730735484315,-1288.14,0.0003726,2]
[341266311,1730735484324,-543.83,0.0003726,2]
[341266312,1730735484333,-636.36,0.0003726,2]
[341266313,1730735484343,-1218.15,0.0003726,2]
[341266314,1730735484352,-500.0,0.0003726,2]
[341266315,1730735484361,-1259.81,0.0003726,2]
[341266316,1730735484370,-1651.88,0.0003726,2]
[341266317,1730735484379,-319.99,0.0003726,2]
[341266318,1730735484388,-500.0,0.0003726,2]
[341266319,1730735484400,-500.0,0.0003726,2]
[341266320,1730735484409,-500.0,0.0003726,2]
[341266321,1730735484419,-1360.92,0.0003726,2]
[341266322,1730735484428,-500.0,0.0003726,2]
[341266323,1730735484438,-912.89,0.0003726,2]
[341266324,1730735484447,-500.0,0.0003726,2]
[341266325,1730735484455,-500.0,0.0003726,2]
[341266326,1730735484464,-500.0,0.0003726,2]
[341266327,1730735484474,-500.0,0.0003726,2]
[341266328,1730735484484,-153.25748553,0.0003726,2]
[341266329,1730735484493,-719.39,0.0003726,2]
[341266330,1730735484502,-500.0,0.0003726,2]
[341266331,1730735484511,-704.43,0.0003726,2]
[341266332,1730735484521,-669.63,0.0003726,2]
[341266333,1730735484530,-500.0,0.0003726,2]
[341266334,1730735484540,-500.0,0.0003726,2]
[341266335,1730735484549,-529.69,0.0003726,2]
[341266336,1730735484559,-500.0,0.0003726,2]
[341266337,1730735484568,-500.0,0.0003726,2]
[341266338,1730735484579,-500.0,0.0003726,2]
[341266339,1730735484589,-500.0,0.0003726,2]
[341266340,1730735484598,-500.0,0.0003726,2]
[341266341,1730735484610,-500.0,0.0003726,2]
[341266342,1730735484619,-1802.68,0.0003726,2]
[341266343,1730735484629,-500.0,0.0003726,2]
[341266344,1730735484639,-500.0,0.0003726,2]
[341266345,1730735484649,-500.0,0.0003726,2]
[341266346,1730735484658,-500.0,0.0003726,2]
[341266347,1730735484667,-500.0,0.0003726,2]
[341266348,1730735484677,-687.5,0.0003726,2]
[341266349,1730735484688,-1321.04,0.0003726,2]
[341266350,1730735484700,-909.72,0.0003726,2]
[341266351,1730735484711,-500.0,0.0003726,2]
[341266352,1730735484720,-500.0,0.0003726,2]
[341266353,1730735484730,-500.0,0.0003726,2]
[341266354,1730735484740,-879.57,0.0003726,2]
[341266355,1730735484749,-500.0,0.0003726,2]
[341266356,1730735484758,-571.76,0.0003726,2]
[341266357,1730735484769,-500.0,0.0003726,2]
[341266358,1730735484778,-500.0,0.0003726,2]
[341266359,1730735484788,-534.69,0.0003726,2]
[341266360,1730735484798,-500.0,0.0003726,2]
[341266361,1730735484808,-500.0,0.0003726,2]
[341266362,1730735484817,-939.96,0.0003726,2]
[341266363,1730735484827,-500.0,0.0003726,2]
[341266364,1730735484836,-980.66,0.0003726,2]
[341266365,1730735484846,-500.0,0.0003726,2]
[341266366,1730735484856,-500.0,0.0003726,2]
[341266367,1730735484866,-546.11,0.0003726,2]
[341266368,1730735484876,-500.0,0.0003726,2]
[341266369,1730735484886,-511.22,0.0003726,2]
[341266370,1730735484896,-500.0,0.0003726,2]
[341266371,1730735484905,-500.0,0.0003726,2]
[341266372,1730735484914,-505.5,0.0003726,2]
[341266373,1730735484924,-500.0,0.0003726,2]
[341266374,1730735484933,-500.0,0.0003726,2]
[341266375,1730735484943,-984.46,0.0003726,2]
[341266376,1730735484952,-614.73,0.0003726,2]
[341266377,1730735484961,-500.0,0.0003726,2]
[341266378,1730735484971,-500.0,0.0003726,2]
[341266379,1730735484981,-602.48,0.0003726,2]
[341266380,1730735484990,-988.32,0.0003726,2]
[341266381,1730735484999,-500.0,0.0003726,2]
[341266382,1730735485008,-500.0,0.0003726,2]
[341266383,1730735485017,-500.0,0.0003726,2]
[341266384,1730735485026,-631.52,0.0003726,2]
[341266385,1730735485035,-553.74,0.0003726,2]
[341266386,1730735485044,-988.27,0.0003726,2]
[341266387,1730735485054,-769.98,0.0003726,2]
[341266388,1730735485064,-176.33249023,0.0003726,2]
[341266389,1730735485074,-500.0,0.0003726,2]
[341266390,1730735485084,-500.0,0.0003726,2]
[341266391,1730735485093,-500.0,0.0003726,2]
[341266392,1730735485102,-1956.97,0.0003726,2]
[341266393,1730735485112,-500.0,0.0003726,2]
[341266394,1730735485121,-500.0,0.0003726,2]
[341266395,1730735485131,-500.0,0.0003726,2]
[341266396,1730735485140,-250.0,0.0003726,2]
[341266397,1730735485150,-451.7091695,0.0003726,2]
[341266398,1730735485159,-566.20323071,0.0003726,2]
[341266399,1730735485168,-566.39,0.0003726,2]
[341266400,1730735485178,-1694.4,0.0003726,2]
[341266401,1730735485187,-500.0,0.0003726,2]
[341266402,1730735485197,-500.0,0.0003726,2]
[341266403,1730735485206,-500.0,0.0003726,2]
[341266404,1730735485215,-500.0,0.0003726,2]
[341266405,1730735485225,-515.3,0.0003726,2]
[341266406,1730735485235,-500.0,0.0003726,2]
[341266407,1730735485244,-500.0,0.0003726,2]
[341266408,1730735485253,-879.85,0.0003726,2]
[341266409,1730735485262,-652.97,0.0003726,2]
[341266410,1730735485271,-689.03,0.0003726,2]
[341266411,1730735485281,-500.0,0.0003726,2]
[341266412,1730735485290,-500.0,0.0003726,2]
[341266413,1730735485299,-500.0,0.0003726,2]
[341266414,1730735485309,-777.65,0.0003726,2]
[341266415,1730735485319,-500.0,0.0003726,2]
[341266416,1730735485328,-500.0,0.0003726,2]
[341266417,1730735485337,-500.0,0.0003726,2]
[341266418,1730735485346,-500.0,0.0003726,2]
[341266419,1730735485356,-609.2,0.0003726,2]
[341266420,1730735485365,-1141.77,0.0003726,2]
[341266421,1730735485375,-815.25,0.0003726,2]
[341266422,1730735485384,-611.47,0.0003726,2]
[341266423,1730735485397,-500.0,0.0003726,2]
[341266424,1730735485406,-1247.49,0.0003726,2]
[341266425,1730735485415,-500.0,0.0003726,2]
[341266426,1730735485424,-500.0,0.0003726,2]
[341266427,1730735485433,-877.23,0.0003726,2]
[341266428,1730735485445,-1538.63,0.0003726,2]
[341266429,1730735485455,-1051.45,0.0003726,2]
[341266430,1730735485465,-500.0,0.0003726,2]
[341266431,1730735485474,-500.0,0.0003726,2]
[341266432,1730735485485,-4150.77,0.0003726,2]
[341266433,1730735485494,-500.0,0.0003726,2]
[341266434,1730735485503,-745.46,0.0003726,2]
[341266435,1730735485512,-1876.8,0.0003726,2]
[341266436,1730735485522,-1151.0,0.0003726,2]
[341266437,1730735485531,-1770.42,0.0003726,2]
[341266438,1730735485540,-510.09,0.0003726,2]
[341266439,1730735485550,-500.0,0.0003726,2]
[341266440,1730735485559,-522.29,0.0003726,2]
[341266441,1730735485569,-958.22,0.0003726,2]
[341266442,1730735485579,-1127.16,0.0003726,2]
[341266443,1730735485588,-500.0,0.0003726,2]
[341266444,1730735485706,-865.69,0.0003726,2]
[341266445,1730735485716,-500.0,0.0003726,2]
[341266446,1730735485726,-500.0,0.0003726,2]
[341266447,1730735485737,-1128.13,0.0003726,2]
[341266448,1730735485746,-500.0,0.0003726,2]
[341266449,1730735485756,-517.96129928,0.0003726,2]
[341266450,1730735485765,-1045.13,0.0003726,2]
[341266451,1730735485774,-531.53,0.0003726,2]
[341266452,1730735485784,-500.0,0.0003726,2]
[341266453,1730735485794,-2026.72,0.0003726,2]
[341266454,1730735485804,-1098.81,0.0003726,2]
[341266455,1730735485814,-250.0,0.0003726,2]
[341266456,1730735485824,-520.4,0.0003726,2]
[341266457,1730735485836,-500.0,0.0003726,2]
[341266458,1730735485846,-500.0,0.0003726,2]
[341266459,1730735485855,-519.04,0.0003726,2]
[341266460,1730735485865,-500.0,0.0003726,2]
[341266461,1730735485875,-488.52815965,0.0003726,2]
[341266462,1730735485884,-521.02178129,0.0003726,2]
[341266463,1730735485894,-500.0,0.0003726,2]
[341266464,1730735485904,-627.52,0.0003726,2]
[341266465,1730735485914,-500.0,0.0003726,2]
[341266466,1730735485923,-587.36,0.0003726,2]
[341266467,1730735485934,-500.0,0.0003726,2]
[341266468,1730735485944,-500.0,0.0003726,2]
[341266469,1730735485953,-500.0,0.0003726,2]
[341266470,1730735485962,-2121.93,0.0003726,2]
[341266471,1730735485973,-500.0,0.0003726,2]
[341266472,1730735485982,-582.71,0.0003726,2]
[341266473,1730735485991,-500.0,0.0003726,2]
[341266474,1730735486001,-1427.63,0.0003726,2]
[341266475,1730735486010,-791.14,0.0003726,2]
[341266476,1730735486020,-1116.56,0.0003726,2]
[341266477,1730735486030,-500.0,0.0003726,2]
[341266478,1730735486039,-2018.13,0.0003726,2]
[341266479,1730735486049,-1093.28,0.0003726,2]
[341266480,1730735486058,-500.0,0.0003726,2]
[341266481,1730735486068,-339.4498689,0.0003726,2]
[341266482,1730735486077,-500.0,0.0003726,2]
[341266483,1730735486087,-1687.58,0.0003726,2]
[341266484,1730735486096,-500.0,0.0003726,2]
[341266485,1730735486105,-1104.45,0.0003726,2]
[341266486,1730735486115,-500.0,0.0003726,2]
[341266487,1730735486124,-911.86,0.0003726,2]
[341266488,1730735486133,-500.0,0.0003726,2]
[341266489,1730735486143,-835.19,0.0003726,2]
[341266490,1730735486152,-500.0,0.0003726,2]
[341266491,1730735486161,-878.68,0.0003726,2]
[341266492,1730735486171,-1098.84,0.0003726,2]
[341266493,1730735486182,-500.0,0.0003726,2]
[341266494,1730735486194,-1310.74,0.0003726,2]
[341266495,1730735486203,-239.75991034,0.0003726,2]
[341266496,1730735486215,-2183.79,0.0003726,2]